[Event "Early-Titled-Tuesday-Blitz-July-09-2024"]
[Site "Chess.com"]
[Date "2024.07.09"]
[Round "8"]
[White "Arimin1329"]
[Black "subham777"]
[Result "0-1"]
[WhiteElo "2407"]
[BlackElo "2537"]
[TimeControl "180+1"]
[EndTime "9:29:06 PDT"]
[Termination "subham777 won by resignation"]

1. Nf3 {[%clk 0:03:00.9]} 1... d5 {[%clk 0:02:59.7]} 2. d4 {[%clk 0:03:01.8]}
2... Nf6 {[%clk 0:02:59.4]} 3. g3 {[%clk 0:03:01.1]} 3... e6 {[%clk 0:03:00]} 4.
Bg2 {[%clk 0:03:02]} 4... Be7 {[%clk 0:03:00.3]} 5. O-O {[%clk 0:03:02.5]} 5...
O-O {[%clk 0:02:58.8]} 6. b3 {[%clk 0:03:02.9]} 6... b6 {[%clk 0:02:56.9]} 7.
Bb2 {[%clk 0:03:03.8]} 7... Bb7 {[%clk 0:02:53.1]} 8. Nbd2 {[%clk 0:03:03.6]}
8... Nbd7 {[%clk 0:02:53.4]} 9. Rc1 {[%clk 0:03:03.5]} 9... c5 {[%clk
0:02:51.6]} 10. c4 {[%clk 0:03:02.8]} 10... Rc8 {[%clk 0:02:49.2]} 11. Qc2
{[%clk 0:03:01.9]} 11... cxd4 {[%clk 0:02:48.2]} 12. Bxd4 {[%clk 0:02:56.7]}
12... dxc4 {[%clk 0:02:45.2]} 13. bxc4 {[%clk 0:02:49.2]} 13... Bc5 {[%clk
0:02:38.4]} 14. Bc3 {[%clk 0:02:46.1]} 14... Qe7 {[%clk 0:02:33.4]} 15. Rfd1
{[%clk 0:02:37]} 15... e5 {[%clk 0:02:03.8]} 16. Bh3 {[%clk 0:02:23.9]} 16...
Rcd8 {[%clk 0:01:45.6]} 17. Nb3 {[%clk 0:01:52.7]} 17... Ba3 {[%clk 0:01:33.2]}
18. Rb1 {[%clk 0:01:50.6]} 18... Be4 {[%clk 0:01:16.5]} 19. Qd2 {[%clk
0:01:16.1]} 19... Bxb1 {[%clk 0:01:09.7]} 20. Rxb1 {[%clk 0:01:17]} 20... Ne4
{[%clk 0:01:06.4]} 21. Qe3 {[%clk 0:01:13.5]} 21... Nxc3 {[%clk 0:01:05.2]} 22.
Qxc3 {[%clk 0:01:14.4]} 22... Bb4 {[%clk 0:00:52.5]} 23. Qc2 {[%clk 0:01:09.9]}
23... h6 {[%clk 0:00:48.7]} 24. Nh4 {[%clk 0:01:04.1]} 24... Nc5 {[%clk
0:00:36.1]} 25. Nf5 {[%clk 0:01:02.4]} 25... Qf6 {[%clk 0:00:35.9]} 26. e4
{[%clk 0:00:23.7]} 26... Nxb3 {[%clk 0:00:21.2]} 27. axb3 {[%clk 0:00:24.6]}
27... a5 {[%clk 0:00:20.1]} 28. Ne3 {[%clk 0:00:24]} 28... Rd2 {[%clk
0:00:18.5]} 0-1

[Event "Early-Titled-Tuesday-Blitz-July-09-2024"]
[Site "Chess.com"]
[Date "2024.07.09"]
[Round "8"]
[White "lildoggo2007"]
[Black "amanjazu"]
[Result "0-1"]
[WhiteElo "2419"]
[BlackElo "2588"]
[TimeControl "180+1"]
[EndTime "9:29:08 PDT"]
[Termination "amanjazu won by checkmate"]

1. Nf3 {[%clk 0:03:00.9]} 1... Nf6 {[%clk 0:02:58.8]} 2. g3 {[%clk 0:03:00.8]}
2... g6 {[%clk 0:02:58.7]} 3. b3 {[%clk 0:03:00.7]} 3... Bg7 {[%clk 0:02:59.6]}
4. Bb2 {[%clk 0:03:01.2]} 4... O-O {[%clk 0:03:00.5]} 5. Bg2 {[%clk 0:03:01.3]}
5... c5 {[%clk 0:03:01.2]} 6. O-O {[%clk 0:03:01.7]} 6... Nc6 {[%clk 0:03:01.9]}
7. d4 {[%clk 0:03:00.6]} 7... cxd4 {[%clk 0:02:59.8]} 8. Nxd4 {[%clk 0:03:00]}
8... Qb6 {[%clk 0:02:59.1]} 9. e3 {[%clk 0:02:48.9]} 9... d6 {[%clk 0:02:58.1]}
10. c4 {[%clk 0:02:46.2]} 10... Rd8 {[%clk 0:02:57.2]} 11. Nc3 {[%clk
0:02:36.2]} 11... e5 {[%clk 0:02:55]} 12. Nxc6 {[%clk 0:02:34.6]} 12... bxc6
{[%clk 0:02:54.1]} 13. Qf3 {[%clk 0:02:19.4]} 13... Bd7 {[%clk 0:02:35.9]} 14.
h3 {[%clk 0:02:15.9]} 14... Rac8 {[%clk 0:02:35]} 15. Rfd1 {[%clk 0:02:14.5]}
15... Be6 {[%clk 0:02:33.3]} 16. Rac1 {[%clk 0:02:03.5]} 16... Qb8 {[%clk
0:02:23.7]} 17. Ne4 {[%clk 0:01:52.6]} 17... Nxe4 {[%clk 0:02:19.6]} 18. Qxe4
{[%clk 0:01:52.2]} 18... d5 {[%clk 0:02:19]} 19. cxd5 {[%clk 0:01:49.9]} 19...
cxd5 {[%clk 0:02:19.9]} 20. Qa4 {[%clk 0:01:43.7]} 20... Rxc1 {[%clk 0:02:11.4]}
21. Rxc1 {[%clk 0:01:42.6]} 21... d4 {[%clk 0:02:11.4]} 22. exd4 {[%clk
0:01:39.3]} 22... exd4 {[%clk 0:02:12.3]} 23. Rd1 {[%clk 0:01:37.9]} 23... Qe5
{[%clk 0:02:02.2]} 24. Qb4 {[%clk 0:01:19.1]} 24... Bxh3 {[%clk 0:01:32.2]} 25.
Bxh3 {[%clk 0:01:04.3]} 25... Qh5 {[%clk 0:01:30.1]} 26. Rd2 {[%clk 0:00:53.2]}
26... Qxh3 {[%clk 0:01:24.1]} 27. Bxd4 {[%clk 0:00:53.4]} 27... Re8 {[%clk
0:00:27.9]} 28. Rd1 {[%clk 0:00:46.3]} 28... Qg4 {[%clk 0:00:21.5]} 29. Re1
{[%clk 0:00:21.5]} 29... Rxe1+ {[%clk 0:00:19.8]} 30. Qxe1 {[%clk 0:00:22.4]}
30... Qxd4 {[%clk 0:00:20]} 31. Qe8+ {[%clk 0:00:21.5]} 31... Bf8 {[%clk
0:00:20.4]} 32. a4 {[%clk 0:00:17.1]} 32... Kg7 {[%clk 0:00:20.3]} 33. Qb5
{[%clk 0:00:15.7]} 33... Bc5 {[%clk 0:00:20.3]} 34. a5 {[%clk 0:00:15.2]} 34...
Qxf2+ {[%clk 0:00:20.2]} 35. Kh1 {[%clk 0:00:15.9]} 35... Qg1# {[%clk
0:00:21.1]} 0-1

[Event "Early-Titled-Tuesday-Blitz-July-09-2024"]
[Site "Chess.com"]
[Date "2024.07.09"]
[Round "8"]
[White "IMVadim"]
[Black "GMT4114"]
[Result "1-0"]
[WhiteElo "2444"]
[BlackElo "1973"]
[TimeControl "180+1"]
[EndTime "9:29:08 PDT"]
[Termination "IMVadim won on time"]

1. e4 {[%clk 0:03:00.9]} 1... e6 {[%clk 0:03:00.2]} 2. d4 {[%clk 0:02:57.5]}
2... d5 {[%clk 0:03:00.6]} 3. e5 {[%clk 0:02:58.1]} 3... c5 {[%clk 0:03:00]} 4.
c3 {[%clk 0:02:59]} 4... Nc6 {[%clk 0:02:59.9]} 5. Nf3 {[%clk 0:02:58.8]} 5...
Bd7 {[%clk 0:03:00.6]} 6. Be2 {[%clk 0:02:54.4]} 6... Nge7 {[%clk 0:02:56]} 7.
Na3 {[%clk 0:02:43.9]} 7... cxd4 {[%clk 0:02:50]} 8. cxd4 {[%clk 0:02:42.3]}
8... Nf5 {[%clk 0:02:50.5]} 9. Nc2 {[%clk 0:02:37.7]} 9... Qb6 {[%clk 0:02:51]}
10. O-O {[%clk 0:02:32.6]} 10... Na5 {[%clk 0:02:49.3]} 11. Ne3 {[%clk
0:02:29.7]} 11... Nxe3 {[%clk 0:02:40.8]} 12. fxe3 {[%clk 0:02:25.6]} 12... Be7
{[%clk 0:02:41.7]} 13. Bd3 {[%clk 0:02:20.5]} 13... Bb5 {[%clk 0:02:39.5]} 14.
Bxb5+ {[%clk 0:02:10.9]} 14... Qxb5 {[%clk 0:02:40.4]} 15. b3 {[%clk 0:02:05.6]}
15... Rc8 {[%clk 0:02:31.1]} 16. Bd2 {[%clk 0:02:05.4]} 16... O-O {[%clk
0:02:28.9]} 17. Rc1 {[%clk 0:02:04.8]} 17... Nc6 {[%clk 0:02:25.2]} 18. Qc2
{[%clk 0:02:01.5]} 18... Nb4 {[%clk 0:02:21.8]} 19. Qb1 {[%clk 0:02:01.4]} 19...
Nd3 {[%clk 0:02:15.8]} 20. Rxc8 {[%clk 0:01:59]} 20... Rxc8 {[%clk 0:02:16.7]}
21. Ne1 {[%clk 0:01:56.2]} 21... Nxe1 {[%clk 0:01:36.1]} 22. Rxe1 {[%clk
0:01:57.1]} 22... Bb4 {[%clk 0:01:33.7]} 23. Rc1 {[%clk 0:01:51.9]} 23... Rc6
{[%clk 0:01:16.5]} 24. Rxc6 {[%clk 0:01:43]} 24... bxc6 {[%clk 0:01:17.4]} 25.
Bxb4 {[%clk 0:01:38.4]} 25... Qxb4 {[%clk 0:01:17.6]} 26. Qc1 {[%clk 0:01:39.3]}
26... Qb5 {[%clk 0:01:13.5]} 27. Kf2 {[%clk 0:01:38.4]} 27... h6 {[%clk
0:00:43.1]} 28. Ke1 {[%clk 0:01:28.8]} 28... Qd3 {[%clk 0:00:34.3]} 29. Qd2
{[%clk 0:01:26.6]} 29... Qb1+ {[%clk 0:00:18.6]} 30. Ke2 {[%clk 0:01:21.2]}
30... Qe4 {[%clk 0:00:19.1]} 31. Kf1 {[%clk 0:01:18]} 31... Qf5+ {[%clk
0:00:16.9]} 32. Kg1 {[%clk 0:01:15.9]} 32... Qb1+ {[%clk 0:00:14.4]} 33. Kf2
{[%clk 0:01:15.3]} 33... Qf5+ {[%clk 0:00:15.1]} 34. Ke2 {[%clk 0:01:13.6]}
34... Qe4 {[%clk 0:00:15.3]} 35. Kf1 {[%clk 0:01:13.2]} 35... Qf5+ {[%clk
0:00:15.3]} 36. Qf2 {[%clk 0:01:12.1]} 36... Qb1+ {[%clk 0:00:14.4]} 37. Qe1
{[%clk 0:01:12.6]} 37... Qxa2 {[%clk 0:00:14.5]} 38. Qc3 {[%clk 0:01:11.1]}
38... Qb1+ {[%clk 0:00:12]} 39. Ke2 {[%clk 0:01:10.2]} 39... Qe4 {[%clk
0:00:11]} 40. Qxc6 {[%clk 0:01:00.6]} 40... Qxg2+ {[%clk 0:00:10.5]} 41. Kd3
{[%clk 0:01:01.4]} 41... Qe4+ {[%clk 0:00:10.3]} 42. Kd2 {[%clk 0:01:01.9]}
42... Qg2+ {[%clk 0:00:09.5]} 43. Kc3 {[%clk 0:01:02]} 43... Qf3 {[%clk
0:00:05]} 44. Kd2 {[%clk 0:01:01.7]} 44... Qf2+ {[%clk 0:00:05.1]} 45. Kd3
{[%clk 0:01:02.3]} 45... Qxh2 {[%clk 0:00:04]} 46. Qe8+ {[%clk 0:01:01.7]} 46...
Kh7 {[%clk 0:00:03.1]} 47. Qxf7 {[%clk 0:01:02.6]} 1-0

[Event "Early-Titled-Tuesday-Blitz-July-09-2024"]
[Site "Chess.com"]
[Date "2024.07.09"]
[Round "8"]
[White "wannabe2700"]
[Black "Puzzlebot_1294"]
[Result "0-1"]
[WhiteElo "2543"]
[BlackElo "2685"]
[TimeControl "180+1"]
[EndTime "9:29:09 PDT"]
[Termination "Puzzlebot_1294 won by resignation"]

1. e4 {[%clk 0:03:00.9]} 1... e5 {[%clk 0:02:58.9]} 2. Nc3 {[%clk 0:02:59.1]}
2... Nc6 {[%clk 0:02:59.2]} 3. Bc4 {[%clk 0:02:55.5]} 3... Nf6 {[%clk
0:02:58.6]} 4. Nge2 {[%clk 0:02:52.4]} 4... Na5 {[%clk 0:02:57.8]} 5. Bb5 {[%clk
0:02:51.2]} 5... c6 {[%clk 0:02:57.2]} 6. Ba4 {[%clk 0:02:51.4]} 6... b5 {[%clk
0:02:57.4]} 7. Bb3 {[%clk 0:02:51.8]} 7... Nxb3 {[%clk 0:02:57.7]} 8. axb3
{[%clk 0:02:51.6]} 8... Be7 {[%clk 0:02:58.6]} 9. d3 {[%clk 0:02:51.2]} 9... O-O
{[%clk 0:02:58.6]} 10. O-O {[%clk 0:02:50.7]} 10... Bb7 {[%clk 0:02:58.3]} 11.
f4 {[%clk 0:02:50.7]} 11... exf4 {[%clk 0:02:57.9]} 12. Nxf4 {[%clk 0:02:45.6]}
12... d5 {[%clk 0:02:55.7]} 13. exd5 {[%clk 0:02:42.6]} 13... Nxd5 {[%clk
0:02:56.6]} 14. Nfxd5 {[%clk 0:02:42.4]} 14... cxd5 {[%clk 0:02:57.5]} 15. d4
{[%clk 0:02:41.1]} 15... b4 {[%clk 0:02:54.2]} 16. Na4 {[%clk 0:02:40.7]} 16...
Bc6 {[%clk 0:02:51.4]} 17. Bf4 {[%clk 0:02:31.7]} 17... Re8 {[%clk 0:02:45.3]}
18. Be5 {[%clk 0:02:30.3]} 18... f6 {[%clk 0:02:35.6]} 19. Bf4 {[%clk
0:02:29.8]} 19... Bf8 {[%clk 0:02:30.6]} 20. Qd3 {[%clk 0:02:07.4]} 20... Qd7
{[%clk 0:02:25.1]} 21. Qd2 {[%clk 0:01:44.2]} 21... Bb5 {[%clk 0:02:14.1]} 22.
Rf2 {[%clk 0:01:34.2]} 22... Re4 {[%clk 0:02:08.8]} 23. Nc5 {[%clk 0:01:32.4]}
23... Bxc5 {[%clk 0:01:58.3]} 24. dxc5 {[%clk 0:01:33.3]} 24... Rae8 {[%clk
0:01:57.2]} 25. Bd6 {[%clk 0:01:33.3]} 25... Qe6 {[%clk 0:01:48.8]} 26. h3
{[%clk 0:01:29.1]} 26... a6 {[%clk 0:01:37.7]} 27. Rd1 {[%clk 0:01:21.6]} 27...
Bc6 {[%clk 0:01:22.2]} 28. Kh2 {[%clk 0:01:19.3]} 28... Re2 {[%clk 0:01:12.6]}
29. Qd4 {[%clk 0:01:09.2]} 29... Rxf2 {[%clk 0:01:00.6]} 30. Qxf2 {[%clk
0:01:10.1]} 30... Qe2 {[%clk 0:01:01]} 31. Qxe2 {[%clk 0:01:02.6]} 31... Rxe2
{[%clk 0:01:01.9]} 32. Ra1 {[%clk 0:01:02.9]} 32... Bb5 {[%clk 0:00:56.9]} 33.
c6 {[%clk 0:00:52.7]} 33... Bxc6 {[%clk 0:00:49]} 34. Rxa6 {[%clk 0:00:51.9]}
34... Rxc2 {[%clk 0:00:49.6]} 35. Bxb4 {[%clk 0:00:50.2]} 35... d4 {[%clk
0:00:48.6]} 36. Kg3 {[%clk 0:00:33.1]} 36... g5 {[%clk 0:00:30.8]} 37. Kg4
{[%clk 0:00:31.3]} 37... Kf7 {[%clk 0:00:22.6]} 38. Bd2 {[%clk 0:00:23.1]} 0-1

[Event "Early-Titled-Tuesday-Blitz-July-09-2024"]
[Site "Chess.com"]
[Date "2024.07.09"]
[Round "8"]
[White "Aygehovit1992"]
[Black "BogdanDeac"]
[Result "1-0"]
[WhiteElo "2787"]
[BlackElo "2989"]
[TimeControl "180+1"]
[EndTime "9:29:15 PDT"]
[Termination "Aygehovit1992 won by resignation"]

1. e4 {[%clk 0:03:00.9]} 1... c5 {[%clk 0:02:59]} 2. Nc3 {[%clk 0:03:00.3]} 2...
e6 {[%clk 0:02:58.2]} 3. d4 {[%clk 0:03:00.3]} 3... cxd4 {[%clk 0:02:57.7]} 4.
Qxd4 {[%clk 0:03:01.2]} 4... Nc6 {[%clk 0:02:57.7]} 5. Qe3 {[%clk 0:03:01.7]}
5... Nf6 {[%clk 0:02:39.6]} 6. Nf3 {[%clk 0:02:55.8]} 6... Be7 {[%clk
0:02:34.6]} 7. e5 {[%clk 0:02:51.6]} 7... Ng4 {[%clk 0:02:31.9]} 8. Qf4 {[%clk
0:02:48.1]} 8... f5 {[%clk 0:02:31.2]} 9. h3 {[%clk 0:02:17.6]} 9... Nh6 {[%clk
0:02:12.8]} 10. Qg3 {[%clk 0:02:12.9]} 10... Kf8 {[%clk 0:02:04.5]} 11. Bxh6
{[%clk 0:02:12.9]} 11... gxh6 {[%clk 0:02:04.4]} 12. O-O-O {[%clk 0:02:13.7]}
12... Rg8 {[%clk 0:02:04.1]} 13. Qh2 {[%clk 0:02:04.9]} 13... a6 {[%clk
0:02:00.4]} 14. g4 {[%clk 0:02:03.5]} 14... Bb4 {[%clk 0:00:54.8]} 15. gxf5
{[%clk 0:01:47.1]} 15... Bxc3 {[%clk 0:00:54.1]} 16. bxc3 {[%clk 0:01:45.3]}
16... exf5 {[%clk 0:00:45.2]} 17. Qf4 {[%clk 0:01:35.5]} 17... Rg6 {[%clk
0:00:44.3]} 18. Nh4 {[%clk 0:01:28.7]} 18... Qg5 {[%clk 0:00:24.4]} 19. Nxg6+
{[%clk 0:01:28.6]} 19... hxg6 {[%clk 0:00:25.1]} 20. Qxg5 {[%clk 0:01:27.8]}
20... hxg5 {[%clk 0:00:26]} 21. h4 {[%clk 0:01:23.7]} 21... g4 {[%clk
0:00:22.2]} 22. h5 {[%clk 0:01:18.6]} 22... Kg7 {[%clk 0:00:17.2]} 23. hxg6
{[%clk 0:00:52.9]} 23... Nxe5 {[%clk 0:00:17.1]} 24. Rh7+ {[%clk 0:00:52.9]}
24... Kxg6 {[%clk 0:00:16.8]} 25. Rh8 {[%clk 0:00:53.3]} 25... Kg7 {[%clk
0:00:12.8]} 26. Re8 {[%clk 0:00:51.8]} 26... Nc6 {[%clk 0:00:07.3]} 27. Bc4
{[%clk 0:00:51.4]} 27... b5 {[%clk 0:00:06.7]} 28. Bb3 {[%clk 0:00:50]} 28...
Kf6 {[%clk 0:00:05.5]} 29. Rf8+ {[%clk 0:00:33.9]} 29... Kg5 {[%clk 0:00:05.2]}
30. Rd5 {[%clk 0:00:33.4]} 30... d6 {[%clk 0:00:04.9]} 31. Rxd6 {[%clk
0:00:31.8]} 31... Na5 {[%clk 0:00:05]} 32. Bd5 {[%clk 0:00:29.3]} 32... Rb8
{[%clk 0:00:04.8]} 33. Rdd8 {[%clk 0:00:29.4]} 33... Rb6 {[%clk 0:00:05]} 34.
Rxc8 {[%clk 0:00:29.3]} 34... Rd6 {[%clk 0:00:05.6]} 35. Rc5 {[%clk 0:00:25.4]}
1-0

[Event "Early-Titled-Tuesday-Blitz-July-09-2024"]
[Site "Chess.com"]
[Date "2024.07.09"]
[Round "8"]
[White "Kobalia"]
[Black "Beca95"]
[Result "0-1"]
[WhiteElo "2823"]
[BlackElo "3002"]
[TimeControl "180+1"]
[EndTime "9:29:16 PDT"]
[Termination "Beca95 won on time"]

1. e4 {[%clk 0:03:00.9]} 1... e5 {[%clk 0:02:59.5]} 2. Nf3 {[%clk 0:03:00.5]}
2... Nc6 {[%clk 0:03:00.1]} 3. Bb5 {[%clk 0:03:00.1]} 3... a6 {[%clk 0:02:59.7]}
4. Ba4 {[%clk 0:03:00.1]} 4... Nf6 {[%clk 0:02:59.8]} 5. O-O {[%clk 0:03:00.2]}
5... Be7 {[%clk 0:03:00.1]} 6. Re1 {[%clk 0:02:55]} 6... b5 {[%clk 0:02:59.9]}
7. Bb3 {[%clk 0:02:55.2]} 7... d6 {[%clk 0:03:00.2]} 8. a4 {[%clk 0:02:51.2]}
8... Bg4 {[%clk 0:02:56.7]} 9. c3 {[%clk 0:02:50.9]} 9... O-O {[%clk 0:02:53.2]}
10. h3 {[%clk 0:02:50.2]} 10... Bxf3 {[%clk 0:02:53.3]} 11. Qxf3 {[%clk
0:02:49.3]} 11... Na5 {[%clk 0:02:45.5]} 12. Bc2 {[%clk 0:02:48.9]} 12... c5
{[%clk 0:02:45.9]} 13. axb5 {[%clk 0:02:46]} 13... axb5 {[%clk 0:02:45.8]} 14.
d3 {[%clk 0:02:45.3]} 14... Nd7 {[%clk 0:02:45.6]} 15. Nd2 {[%clk 0:02:42.2]}
15... b4 {[%clk 0:02:40]} 16. Nb3 {[%clk 0:02:37.4]} 16... bxc3 {[%clk
0:02:31.4]} 17. bxc3 {[%clk 0:02:34.3]} 17... c4 {[%clk 0:02:31.6]} 18. Nd2
{[%clk 0:01:49.3]} 18... cxd3 {[%clk 0:02:29.3]} 19. Qxd3 {[%clk 0:01:49.3]}
19... Qc7 {[%clk 0:02:29.4]} 20. Nf1 {[%clk 0:01:45]} 20... Nc5 {[%clk
0:02:28.2]} 21. Qd5 {[%clk 0:01:43.4]} 21... Nc6 {[%clk 0:02:23.7]} 22. Be3
{[%clk 0:01:40]} 22... Rxa1 {[%clk 0:02:18.3]} 23. Rxa1 {[%clk 0:01:40.9]} 23...
Ne6 {[%clk 0:02:14.7]} 24. Ra6 {[%clk 0:01:34.7]} 24... Rc8 {[%clk 0:02:10.9]}
25. Ba4 {[%clk 0:01:33.8]} 25... Ned8 {[%clk 0:01:53.5]} 26. g3 {[%clk
0:01:16.8]} 26... Bf8 {[%clk 0:01:52.3]} 27. h4 {[%clk 0:01:14.3]} 27... h5
{[%clk 0:01:50.1]} 28. Nd2 {[%clk 0:00:49.6]} 28... Qb7 {[%clk 0:01:45]} 29. Rb6
{[%clk 0:00:46.5]} 29... Qa8 {[%clk 0:01:45]} 30. Bb3 {[%clk 0:00:41.4]} 30...
Qa1+ {[%clk 0:01:42.6]} 31. Kg2 {[%clk 0:00:40.7]} 31... Ne7 {[%clk 0:01:42.3]}
32. Qxd6 {[%clk 0:00:28.4]} 32... Nf5 {[%clk 0:01:42.2]} 33. Qd3 {[%clk
0:00:27.9]} 33... Nxe3+ {[%clk 0:01:37.5]} 34. Qxe3 {[%clk 0:00:27.5]} 34... Bc5
{[%clk 0:01:37.2]} 35. Rb8 {[%clk 0:00:19.2]} 35... Bxe3 {[%clk 0:01:15]} 36.
Rxc8 {[%clk 0:00:18.6]} 36... Bb6 {[%clk 0:01:14]} 37. Nc4 {[%clk 0:00:16.7]}
37... Qa7 {[%clk 0:01:12.7]} 38. Nxe5 {[%clk 0:00:14.5]} 38... Kh7 {[%clk
0:01:12.7]} 39. Bd5 {[%clk 0:00:09]} 39... Qa6 {[%clk 0:01:03.7]} 40. Rc4 {[%clk
0:00:03.2]} 40... Qa2 {[%clk 0:01:02.6]} 41. Nd3 {[%clk 0:00:02.1]} 41... Qe2
{[%clk 0:00:55]} 0-1

[Event "Early-Titled-Tuesday-Blitz-July-09-2024"]
[Site "Chess.com"]
[Date "2024.07.09"]
[Round "8"]
[White "Redbandit87"]
[Black "KhamzinOlzhas"]
[Result "1-0"]
[WhiteElo "2444"]
[BlackElo "2546"]
[TimeControl "180+1"]
[EndTime "9:29:16 PDT"]
[Termination "Redbandit87 won by resignation"]

1. e4 {[%clk 0:03:00.9]} 1... c5 {[%clk 0:02:59.7]} 2. d4 {[%clk 0:03:00]} 2...
cxd4 {[%clk 0:02:59.4]} 3. c3 {[%clk 0:03:00.6]} 3... dxc3 {[%clk 0:03:00.3]} 4.
Nxc3 {[%clk 0:03:01.1]} 4... Nc6 {[%clk 0:03:00.1]} 5. Nf3 {[%clk 0:02:59.8]}
5... e6 {[%clk 0:03:00.2]} 6. Bc4 {[%clk 0:02:59.3]} 6... Bb4 {[%clk 0:03:00.4]}
7. O-O {[%clk 0:02:57.8]} 7... Nge7 {[%clk 0:03:00.9]} 8. Bg5 {[%clk 0:02:49.4]}
8... O-O {[%clk 0:02:50]} 9. Nd5 {[%clk 0:02:11]} 9... exd5 {[%clk 0:02:37.3]}
10. exd5 {[%clk 0:02:10.7]} 10... Na5 {[%clk 0:02:37]} 11. d6 {[%clk 0:01:55.1]}
11... Nxc4 {[%clk 0:02:36.5]} 12. Bxe7 {[%clk 0:01:54.7]} 12... Qxe7 {[%clk
0:02:37.3]} 13. dxe7 {[%clk 0:01:52.1]} 13... Bxe7 {[%clk 0:02:37]} 14. Qe2
{[%clk 0:01:43.7]} 14... Nxb2 {[%clk 0:01:44.2]} 15. Qxe7 {[%clk 0:01:40.4]}
15... d5 {[%clk 0:01:43.2]} 16. Rab1 {[%clk 0:01:33.7]} 16... Nc4 {[%clk
0:01:41.2]} 17. Rfd1 {[%clk 0:01:29.5]} 17... Bf5 {[%clk 0:01:40.5]} 18. Rxb7
{[%clk 0:01:24.2]} 18... Rae8 {[%clk 0:01:34.4]} 19. Qb4 {[%clk 0:01:19]} 19...
a5 {[%clk 0:01:31.6]} 20. Qc5 {[%clk 0:01:14]} 20... Be4 {[%clk 0:01:21.7]} 21.
h3 {[%clk 0:01:05.5]} 21... Rc8 {[%clk 0:01:16.1]} 22. Rc7 {[%clk 0:01:05.7]}
22... Rcd8 {[%clk 0:01:12.2]} 23. Nd2 {[%clk 0:01:03.5]} 23... Bc2 {[%clk
0:01:11]} 24. Rc1 {[%clk 0:00:52.8]} 24... Nxd2 {[%clk 0:00:56.3]} 25. Qxc2
{[%clk 0:00:48]} 25... Ne4 {[%clk 0:00:55.4]} 26. Qd3 {[%clk 0:00:39.9]} 26...
h6 {[%clk 0:00:50.6]} 27. Ra7 {[%clk 0:00:38]} 27... Rfe8 {[%clk 0:00:24.9]} 28.
Rxa5 {[%clk 0:00:36.9]} 28... Nf6 {[%clk 0:00:25.3]} 29. Ra7 {[%clk 0:00:35.4]}
29... d4 {[%clk 0:00:23.8]} 30. Rd1 {[%clk 0:00:34.8]} 30... Ne4 {[%clk
0:00:20.1]} 31. Qf3 {[%clk 0:00:31.3]} 31... Ng5 {[%clk 0:00:13.2]} 32. Qf4
{[%clk 0:00:29.1]} 32... Re4 {[%clk 0:00:12.6]} 33. Qc7 {[%clk 0:00:27.7]} 33...
Rde8 {[%clk 0:00:10.9]} 34. Rb7 {[%clk 0:00:24.7]} 34... Ne6 {[%clk 0:00:10.1]}
35. Qxf7+ {[%clk 0:00:23.7]} 35... Kh8 {[%clk 0:00:09.2]} 36. Qxe8+ {[%clk
0:00:24]} 1-0

[Event "Early-Titled-Tuesday-Blitz-July-09-2024"]
[Site "Chess.com"]
[Date "2024.07.09"]
[Round "8"]
[White "ShahMatKanal"]
[Black "chipmunknau"]
[Result "0-1"]
[WhiteElo "2562"]
[BlackElo "2712"]
[TimeControl "180+1"]
[EndTime "9:29:19 PDT"]
[Termination "chipmunknau won by resignation"]

1. e4 {[%clk 0:03:00.9]} 1... c6 {[%clk 0:02:58.6]} 2. d4 {[%clk 0:02:56.5]}
2... d5 {[%clk 0:02:58.5]} 3. exd5 {[%clk 0:02:57.4]} 3... cxd5 {[%clk
0:02:59.1]} 4. Bd3 {[%clk 0:02:57.8]} 4... Nc6 {[%clk 0:02:59.6]} 5. c3 {[%clk
0:02:58.1]} 5... g6 {[%clk 0:03:00.2]} 6. Nf3 {[%clk 0:02:54.6]} 6... Bf5 {[%clk
0:03:00]} 7. O-O {[%clk 0:02:54]} 7... Nf6 {[%clk 0:02:59.4]} 8. Re1 {[%clk
0:02:52.6]} 8... Bxd3 {[%clk 0:02:55.7]} 9. Qxd3 {[%clk 0:02:52]} 9... Bg7
{[%clk 0:02:56]} 10. Bf4 {[%clk 0:02:49.1]} 10... O-O {[%clk 0:02:55.9]} 11.
Nbd2 {[%clk 0:02:49.4]} 11... Re8 {[%clk 0:02:53]} 12. Ne5 {[%clk 0:02:44.7]}
12... Rc8 {[%clk 0:02:53]} 13. Re2 {[%clk 0:02:40.7]} 13... Nh5 {[%clk
0:02:46.4]} 14. Qf3 {[%clk 0:02:29.6]} 14... Nxf4 {[%clk 0:02:45.5]} 15. Qxf4
{[%clk 0:02:29.9]} 15... Nxe5 {[%clk 0:02:32.6]} 16. dxe5 {[%clk 0:02:30.8]}
16... Qb6 {[%clk 0:02:28.7]} 17. Nb3 {[%clk 0:02:21.6]} 17... Rc4 {[%clk
0:02:25.6]} 18. Nd4 {[%clk 0:02:18.1]} 18... e6 {[%clk 0:02:26.2]} 19. h4 {[%clk
0:02:13.2]} 19... Qc7 {[%clk 0:02:21.5]} 20. Qg3 {[%clk 0:01:52.2]} 20... a6
{[%clk 0:02:21.2]} 21. h5 {[%clk 0:01:51.4]} 21... b5 {[%clk 0:02:21.2]} 22. a3
{[%clk 0:01:48.5]} 22... Rb8 {[%clk 0:02:19.8]} 23. Rae1 {[%clk 0:01:46.6]}
23... a5 {[%clk 0:02:19.5]} 24. Qh3 {[%clk 0:01:42.9]} 24... Qe7 {[%clk
0:02:10.1]} 25. hxg6 {[%clk 0:00:59.3]} 25... hxg6 {[%clk 0:02:11]} 26. Qd3
{[%clk 0:00:57]} 26... b4 {[%clk 0:02:05.8]} 27. cxb4 {[%clk 0:00:56.3]} 27...
axb4 {[%clk 0:02:06.4]} 28. a4 {[%clk 0:00:56.1]} 28... Qa7 {[%clk 0:01:58.1]}
29. Nb5 {[%clk 0:00:49.2]} 29... Qxa4 {[%clk 0:01:49.7]} 30. Nd6 {[%clk
0:00:48.9]} 30... Rc7 {[%clk 0:01:42.3]} 31. b3 {[%clk 0:00:45.4]} 31... Qc6
{[%clk 0:01:34.3]} 32. Qf3 {[%clk 0:00:42.6]} 32... Bxe5 {[%clk 0:01:26.5]} 33.
Nxf7 {[%clk 0:00:28.6]} 33... Rxf7 {[%clk 0:01:27.4]} 34. Qg4 {[%clk 0:00:28.5]}
34... Bg7 {[%clk 0:01:08.2]} 35. Rxe6 {[%clk 0:00:26.7]} 35... Qc2 {[%clk
0:01:08]} 36. Qg3 {[%clk 0:00:20.7]} 36... Rbf8 {[%clk 0:00:54.9]} 37. R1e2
{[%clk 0:00:10.2]} 37... Qb1+ {[%clk 0:00:50.1]} 38. Re1 {[%clk 0:00:09]} 38...
Qf5 {[%clk 0:00:50.7]} 39. R1e2 {[%clk 0:00:06.9]} 39... Bf6 {[%clk 0:00:46.7]}
40. R2e3 {[%clk 0:00:05.4]} 40... Rc8 {[%clk 0:00:42.3]} 41. Re8+ {[%clk
0:00:04.4]} 41... Rxe8 {[%clk 0:00:41.8]} 42. Rxe8+ {[%clk 0:00:05.3]} 42... Kg7
{[%clk 0:00:42.5]} 43. Qh2 {[%clk 0:00:05.3]} 43... Qb1+ {[%clk 0:00:41.1]} 0-1